bitfinex-derivatives/quotes_BNBF0:USTF0_20250112
["timestamp","ask_amount","ask_price","bid_price","bid_amount"]
[1736691542203,0.26490701,694.33,692.67,0.28873778]
[1736691543804,1.08226122,694.32,692.67,0.28873778]
[1736691544001,0.26490868,694.31,692.67,0.28873778]
[1736691545300,0.26490868,694.31,692.67,2.97987129]
[1736691545503,0.26490868,694.31,692.68,0.92359073]
[1736691545699,0.26490868,694.31,692.7,0.28872527]
[1736691546607,1.08226122,694.32,692.7,0.28872527]
[1736691546807,0.26490721,694.31,692.7,0.28872527]
[1736691547003,0.26490721,694.3,692.7,0.28872527]
[1736691547308,0.26490721,694.29,692.7,0.28872527]
[1736691547509,0.26490721,694.28,692.7,0.28872527]
[1736691547710,0.26490721,694.27,692.7,0.28872527]
[1736691548008,1.08226122,694.34,692.7,0.28872527]
[1736691548507,1.08226122,694.39,692.7,0.28872527]
[1736691548701,0.26489543,694.38,692.7,0.28872527]
[1736691550308,1.08226122,694.37,692.7,0.28872527]
[1736691550507,0.26489543,694.36,692.7,0.28872527]
[1736691551407,1.08226122,694.35,692.7,0.28872527]
[1736691551608,0.26489543,694.34,692.7,0.28872527]
[1736691551803,1.08226122,694.33,692.7,0.28872527]
[1736691552008,0.26489543,694.32,692.7,0.28872527]
[1736691552308,0.26490398,694.31,692.7,0.28872527]
[1736691552607,1.08226122,694.33,692.7,0.28872527]
[1736691553009,1.08226122,694.32,692.7,0.28872527]
[1736691553908,1.08226122,694.34,692.7,0.28872527]
[1736691555211,1.08226122,694.36,692.7,0.28872527]
[1736691556107,1.50540193,694.4,692.7,0.28872527]
[1736691562908,0.26489283,694.39,692.7,0.28872527]
[1736691563510,1.08226122,694.29,692.7,0.28872527]
[1736691564009,0.26493047,694.28,692.7,0.28872527]
[1736691564217,1.7703541,694.28,692.7,0.28872527]
[1736691564414,0.26493047,694.27,692.7,0.28872527]
[1736691564614,1.08226122,694.24,692.7,0.28872527]
[1736691564815,0.26493047,694.23,692.7,0.28872527]
[1736691565608,0.2649829,694.22,692.7,0.28872527]
[1736691565818,0.26498644,694.21,692.7,0.28872527]
[1736691566316,1.08226122,694.07,692.7,0.28872527]
[1736691567013,1.08226122,694.05,692.7,0.28872527]
[1736691567217,0.26500504,694.04,692.7,0.28872527]
[1736691568019,1.08226122,694.02,692.7,0.28872527]
[1736691568615,1.08226122,694.04,692.7,0.28872527]
[1736691569019,0.26500137,694.03,692.7,0.28872527]
[1736691569215,1.08226122,694.04,692.7,0.28872527]
[1736691570318,1.08226122,694.07,692.7,0.28872527]
[1736691570516,0.26499969,694.06,692.7,0.28872527]
[1736691570814,1.08226122,694.07,692.7,0.28872527]
[1736691571019,0.26499952,694.06,692.7,0.28872527]
[1736691571521,0.26499952,694.05,692.7,0.28872527]
[1736691571813,1.08226122,694.09,692.7,0.28872527]
[1736691572020,0.26499314,694.08,692.7,0.28872527]
[1736691572620,0.26499314,694.07,692.7,0.28872527]
[1736691572820,0.26499314,694.06,692.7,0.28872527]
[1736691573020,1.08226122,694.12,692.7,0.28872527]
[1736691573221,0.26498293,694.11,692.7,0.28872527]
[1736691573616,1.08226122,694.15,692.7,0.28872527]
[1736691573821,0.26498165,694.14,692.7,0.28872527]
[1736691574324,0.26498165,694.13,692.7,0.28872527]
[1736691574623,0.26498165,694.12,692.7,0.28872527]
[1736691574818,0.26498165,694.11,692.7,0.28872527]
[1736691575023,0.26498165,694.1,692.7,0.28872527]
[1736691575223,0.26498165,694.09,692.7,0.28872527]
[1736691575423,0.26498165,694.08,692.7,0.28872527]
[1736691575625,0.26498165,694.07,692.7,0.28872527]
[1736691575820,1.08226122,694.17,692.7,0.28872527]
[1736691576025,1.08226122,694.14,692.7,0.28872527]
[1736691576623,0.264961,694.13,692.7,0.28872527]
[1736691577230,1.08226122,694.24,692.7,0.28872527]
[1736691577429,0.26494478,694.23,692.7,0.28872527]
[1736691577725,1.50558646,694.28,692.7,0.28872527]
[1736691577926,0.26493976,694.27,692.7,0.28872527]
[1736691579229,1.08226122,694.36,692.7,0.28872527]
[1736691579426,0.26490845,694.35,692.7,0.28872527]
[1736691584630,0.26490919,694.34,692.7,0.28872527]
[1736691584931,0.26490919,694.33,692.7,0.28872527]
[1736691585136,0.26490919,694.32,692.7,0.28872527]
[1736691585338,0.26490598,694.31,692.7,0.28872527]
[1736691585535,0.26490598,694.3,692.7,0.28872527]
[1736691585737,1.50543449,694.36,692.7,0.28872527]
[1736691585936,0.26490528,694.35,692.7,0.28872527]
[1736691586937,1.50543449,694.36,692.7,0.28872527]
[1736691602148,1.08226122,694.42,692.7,0.28872527]
[1736691602445,1.50534223,694.4,692.7,0.28872527]
[1736691603949,0.26490549,694.39,692.7,0.28872527]
[1736691604352,1.08226122,694.34,692.7,0.28872527]
[1736691604652,0.26490549,694.33,692.7,0.28872527]
[1736691605254,1.08226122,694.27,692.73,1.29823489]
[1736691605547,0.26490549,694.26,692.75,0.28870443]
[1736691605854,1.08226122,694.25,692.75,1.58693932]
[1736691606155,0.26490549,694.24,692.75,1.58693932]
[1736691606854,1.34716671,694.24,692.75,0.28870443]
[1736691607053,0.26490549,694.23,692.75,0.28870443]
[1736691608054,1.08226122,694.18,692.75,0.28870443]
[1736691608248,1.08226122,694.18,692.75,2.05784595]
[1736691608454,0.26493744,694.17,692.75,0.28870443]
[1736691608750,1.08226122,694.18,692.75,0.28870443]
[1736691608950,1.08226122,694.15,692.76,1.29823489]
[1736691609356,0.28812631,694.14,692.76,1.29823489]
[1736691610059,0.28812631,694.14,692.75,0.28870443]
[1736691610960,1.37038753,694.14,692.75,0.28870443]
[1736691611562,0.26504345,694.13,692.75,0.28870443]
[1736691611860,0.28812631,694.14,692.75,0.28870443]
[1736691612763,1.50612947,694.13,692.75,0.28870443]
[1736691612957,0.28813461,694.12,692.75,0.28870443]
[1736691622572,0.26502179,694.11,692.75,0.28870443]
[1736691624370,0.2650245,694.1,692.75,0.28870443]
[1736691624571,0.2650245,694.09,692.75,0.28870443]
[1736691625170,0.28814291,694.1,692.75,0.28870443]
[1736691625375,0.26502519,694.09,692.75,0.28870443]
[1736691627272,0.26501651,694.08,692.75,0.28870443]
[1736691627574,0.26501651,694.07,692.75,0.28870443]
[1736691627774,0.26501651,694.06,692.75,0.28870443]
[1736691627975,0.26501651,694.05,692.75,0.28870443]
[1736691628175,1.50600998,694.05,692.75,0.28870443]
[1736691633273,0.26502398,694.04,692.75,0.28870443]
[1736691633674,1.50600998,694.05,692.75,0.28870443]
[1736691634480,0.26502367,694.04,692.75,0.28870443]
[1736691634681,1.50600998,694.05,692.75,0.28870443]
[1736691634881,0.2650261,694.04,692.75,0.28870443]
[1736691637983,0.26502957,694.03,692.75,0.28870443]
[1736691638177,0.26502957,694.02,692.75,0.28870443]
[1736691638376,0.26502957,694.01,692.75,0.28870443]
[1736691638584,1.50600998,694.05,692.75,0.28870443]
[1736691638784,0.26503183,694.04,692.75,0.28870443]
[1736691640183,1.08226122,694.01,692.75,0.28870443]
[1736691640882,1.08226122,693.97,692.75,0.28870443]
[1736691641785,1.08226122,693.93,692.75,0.28870443]
[1736691642880,1.08226122,693.89,692.75,0.28870443]
[1736691643880,1.08226122,693.82,692.75,0.28870443]
[1736691644783,1.08226122,693.8,692.75,0.28870443]
[1736691645882,1.08226122,693.95,692.75,0.28870443]
[1736691646886,1.08226122,694.03,692.75,0.28870443]
[1736691650189,1.08226122,694.02,692.75,0.28870443]
[1736691651290,1.08226122,694.05,692.75,0.28870443]
[1736691652193,1.08226122,694.03,692.75,0.28870443]
[1736691653195,1.08226122,694.01,692.75,0.28870443]
[1736691654294,1.08226122,694.0,692.75,0.28870443]
[1736691655990,1.50615663,693.99,692.75,0.28870443]
[1736691656189,1.08226122,693.97,692.75,0.28870443]
[1736691656989,1.08226122,693.98,692.75,0.28870443]
[1736691659293,2.58841785,693.99,692.75,0.28870443]
[1736691661300,1.50615663,693.99,692.75,0.28870443]
[1736691663402,1.08226122,693.98,692.75,0.28870443]
[1736691665001,1.08226122,693.95,692.75,0.28870443]
[1736691666206,1.08226122,693.88,692.75,0.28870443]
[1736691667007,1.08226122,693.91,692.75,0.28870443]
[1736691668000,1.08226122,693.9,692.75,0.28870443]
[1736691669009,1.08226122,693.87,692.75,0.28870443]
[1736691669912,1.08226122,693.85,692.75,0.28870443]
[1736691670706,1.08226122,693.86,692.75,0.28870443]
[1736691671912,1.08226122,693.83,692.75,0.28870443]
[1736691673112,1.08226122,693.85,692.75,0.28870443]
[1736691674008,1.08226122,693.83,692.75,0.28870443]
[1736691674715,1.08226122,693.82,692.75,0.28870443]
[1736691675614,1.50615663,693.99,692.75,0.28870443]
[1736691675615,1.08226122,693.8,692.75,0.28870443]
[1736691677616,1.08226122,693.98,692.75,0.28870443]
[1736691677617,1.08226122,693.79,692.75,0.28870443]
[1736691678717,1.08226122,693.81,692.75,0.28870443]
[1736691679617,1.08226122,693.82,692.75,0.28870443]
[1736691680510,1.08226122,693.81,692.75,0.28870443]
[1736691681519,1.08226122,693.8,692.75,0.28870443]
[1736691684322,1.08226122,693.79,692.75,0.28870443]
[1736691685321,1.08226122,693.8,692.75,0.28870443]
[1736691686116,1.08226122,693.79,692.75,0.28870443]
[1736691687120,1.08226122,693.76,692.75,0.28870443]
[1736691689123,1.08226122,693.75,692.75,0.28870443]
[1736691689924,1.08226122,693.76,692.75,0.28870443]
[1736691692830,1.50615663,693.99,692.75,0.28870443]
[1736691692831,1.08226122,693.79,692.75,0.28870443]
[1736691693631,1.08226122,693.78,692.75,0.28870443]
[1736691695225,1.08226122,693.76,692.75,0.28870443]
[1736691697033,1.08226122,693.75,692.75,0.28870443]
[1736691698133,0.89189028,693.98,692.75,0.28870443]
[1736691698134,1.08226122,693.74,692.75,0.28870443]
[1736691700230,1.08226122,693.72,692.75,0.28870443]
[1736691701930,1.08226122,693.73,692.75,0.28870443]
[1736691703834,1.08226122,693.75,692.75,0.28870443]
[1736691705139,1.08226122,693.8,692.75,0.28870443]
[1736691706046,1.08226122,693.78,692.75,0.28870443]
[1736691706946,1.08226122,693.77,692.75,0.28870443]
[1736691708648,1.08226122,693.75,692.75,0.28870443]
[1736691709849,1.50620009,693.9,692.75,0.28870443]
[1736691712745,1.08064197,693.97,692.75,0.28870443]
[1736691712944,0.26504401,693.96,692.75,0.28870443]
[1736691713349,1.34568598,693.96,692.75,0.28870443]
[1736691713545,0.26504401,693.95,692.75,0.28870443]
[1736691714152,1.08064197,693.82,692.75,0.28870443]
[1736691717049,1.08064197,693.86,692.75,0.28870443]
[1736691718155,1.08064197,693.79,692.75,0.28870443]
[1736691719951,0.89168745,694.02,692.75,0.28870443]
[1736691719952,1.08064197,693.78,692.75,0.28870443]
[1736691720652,1.08064197,693.94,692.75,0.28870443]
[1736691722558,1.08064197,693.95,692.75,0.28870443]
[1736691723659,1.08064197,693.96,692.75,0.28870443]
[1736691726457,1.08064197,693.95,692.75,0.28870443]
[1736691727259,1.08064197,693.96,692.75,0.28870443]
[1736691728159,1.50633048,694.03,692.75,0.28870443]
[1736691728160,1.08064197,693.95,692.75,0.28870443]
[1736691730263,1.08064197,693.8,692.75,0.28870443]
[1736691731965,1.08064197,693.81,692.75,0.28870443]
[1736691733666,1.08064197,693.84,692.75,0.28870443]
[1736691735470,1.08064197,693.79,692.75,0.28870443]
[1736691736369,1.08064197,693.78,692.75,0.28870443]
[1736691738365,1.08064197,693.77,692.75,0.28870443]
[1736691739271,1.08064197,693.79,692.75,0.28870443]
[1736691740671,1.08064197,693.8,692.75,0.28870443]
[1736691741373,1.08064197,693.79,692.75,0.28870443]
[1736691743565,1.08064197,693.76,692.75,0.28870443]
[1736691745171,1.50619466,693.96,692.75,0.28870443]
[1736691745172,1.08064197,693.86,692.75,0.28870443]
[1736691748769,1.08064197,693.85,692.75,0.28870443]
[1736691750576,1.08064197,693.84,692.75,0.28870443]
[1736691752173,1.08064197,693.86,692.75,0.28870443]
[1736691753079,1.08064197,693.83,692.75,0.28870443]
[1736691754179,1.08064197,693.84,692.75,0.28870443]
[1736691755179,1.08064197,693.77,692.75,0.28870443]
[1736691756373,1.50619466,693.96,692.75,0.28870443]
[1736691756374,1.08064197,693.76,692.75,0.28870443]
[1736691757276,1.08064197,693.75,692.75,0.28870443]
[1736691758483,1.08064197,693.74,692.75,0.28870443]
[1736691760377,1.50619466,693.96,692.75,0.28870443]
[1736691760378,1.08064197,693.75,692.75,0.28870443]
[1736691761284,1.08064197,693.82,692.75,0.28870443]
[1736691762282,1.08064197,693.79,692.75,0.28870443]
[1736691763285,1.08064197,693.82,692.75,0.28870443]
[1736691765382,1.08064197,693.79,692.75,0.28870443]
[1736691767478,1.08064197,693.8,692.75,0.28870443]
[1736691768483,1.5061512,694.04,692.75,0.28870443]
[1736691768484,1.08064197,693.78,692.75,0.28870443]
[1736691769587,1.08064197,693.77,692.75,0.28870443]
[1736691771087,1.08064197,693.7,692.75,0.28870443]
[1736691772884,0.89237927,694.03,692.75,0.28870443]
[1736691772885,1.08064197,693.72,692.75,0.28870443]
[1736691774482,1.08064197,693.76,692.75,0.28870443]
[1736691778096,1.08064197,693.75,692.75,0.28870443]
[1736691779397,1.08064197,693.89,692.75,0.28870443]
[1736691780200,1.08064197,693.87,692.75,0.28870443]
[1736691780994,1.50628158,693.88,692.75,0.28870443]
[1736691786497,1.08064197,694.01,692.75,0.28870443]
[1736691786898,1.50656416,693.97,692.75,0.28870443]
[1736691787798,0.26506271,693.96,692.75,0.28870443]
[1736691788304,1.08064197,693.73,692.75,0.28870443]
[1736691789502,1.08064197,693.76,692.75,0.28870443]
[1736691790504,1.08064197,693.75,692.75,0.28870443]
[1736691791403,1.08064197,693.76,692.75,0.28870443]
[1736691792105,1.08064197,693.77,692.75,0.28870443]
[1736691794008,1.08064197,693.78,692.75,0.28870443]
[1736691794906,1.08064197,693.79,692.75,0.28870443]
[1736691795702,1.08064197,693.8,692.75,0.28870443]
[1736691797109,1.08064197,693.81,692.75,0.28870443]
[1736691798108,1.08064197,693.8,692.75,0.28870443]
[1736691798712,1.08064197,693.81,692.75,0.28870443]
[1736691799713,1.08064197,693.78,692.75,0.28870443]
[1736691802016,1.08064197,693.75,692.75,0.28870443]
[1736691802917,1.08064197,693.74,692.75,0.28870443]
[1736691803818,1.08064197,693.75,692.75,0.28870443]
[1736691805320,1.08064197,693.73,692.75,0.28870443]
[1736691806318,1.08064197,693.74,692.75,0.28870443]
[1736691807322,1.08064197,693.78,692.75,0.28870443]
[1736691812416,1.08064197,693.8,692.75,0.28870443]
[1736691813317,1.08064197,693.81,692.75,0.28870443]
[1736691814522,1.08064197,693.82,692.75,0.28870443]
[1736691816322,1.08064197,693.81,692.75,0.28870443]
[1736691816919,1.50608602,694.06,692.75,0.28870443]
[1736691817120,0.26505482,694.05,692.75,0.28870443]
[1736691818323,1.08031193,693.8,692.75,0.28870443]
[1736691820525,1.08031193,693.78,692.75,0.28870443]
[1736691821119,1.08031193,693.77,692.75,0.28870443]
[1736691822228,1.08031193,693.75,692.75,0.28870443]
[1736691823826,1.08031193,693.72,692.75,0.28870443]
[1736691824719,1.08031193,693.9,692.75,0.28870443]
[1736691824720,1.08031193,693.71,692.75,0.28870443]
[1736691825626,1.08031193,693.73,692.75,0.28870443]
[1736691826522,1.08031193,693.72,692.75,0.28870443]
[1736691829227,1.08031193,693.74,692.75,0.28870443]
[1736691831427,1.08031193,693.72,692.75,0.28870443]
[1736691832827,1.08031193,693.71,692.75,0.28870443]
[1736691834025,1.08031193,693.72,692.75,0.28870443]
[1736691835829,1.08031193,693.71,692.75,0.28870443]
[1736691836724,1.08031193,693.74,692.75,0.28870443]
[1736691837522,1.08031193,693.73,692.75,0.28870443]
[1736691839431,1.08031193,693.75,692.75,0.28870443]
[1736691840133,1.08031193,693.74,692.75,0.28870443]
[1736691841635,1.08031193,693.72,692.75,0.28870443]
[1736691842534,1.08031193,693.71,692.75,0.28870443]
[1736691843435,1.08031193,693.66,692.75,0.28870443]
[1736691845134,1.08031193,693.67,692.75,0.28870443]
[1736691846035,1.08031193,693.66,692.75,0.28870443]
[1736691846734,1.08031193,693.73,692.75,0.28870443]
[1736691847831,1.08031193,693.74,692.75,0.28870443]
[1736691849033,1.08031193,693.77,692.75,0.28870443]
[1736691850732,1.08031193,693.78,692.75,0.28870443]
[1736691851434,1.08031193,693.8,692.75,0.28870443]
[1736691852237,1.50620009,693.91,692.75,0.28870443]
[1736691852238,1.08031193,693.81,692.75,0.28870443]
[1736691852839,1.08031193,693.82,692.75,0.28870443]
[1736691854439,1.08031193,693.83,692.75,0.28870443]
[1736691856342,1.08031193,693.76,692.75,0.28870443]
[1736691857437,1.08031193,693.77,692.75,0.28870443]
[1736691859439,1.08031193,693.78,692.75,0.28870443]
[1736691860246,1.08031193,693.77,692.75,0.28870443]
[1736691861247,1.08031193,693.75,692.75,0.28870443]
[1736691863346,1.08031193,693.73,692.75,0.28870443]
[1736691865147,1.08031193,693.72,692.75,0.28870443]
[1736691866952,1.08031193,693.71,692.75,0.28870443]
[1736691869755,1.08031193,693.73,692.75,0.28870443]
[1736691870754,1.08031193,693.72,692.75,0.28870443]
[1736691871554,1.08031193,693.71,692.75,0.28870443]
[1736691873050,1.08031193,693.7,692.75,0.28870443]
[1736691874058,1.50620009,693.91,692.75,0.28870443]
[1736691874059,1.08031193,693.68,692.75,0.28870443]
[1736691874959,1.08031193,693.66,692.75,0.28870443]
[1736691875959,1.08031193,693.65,692.75,0.28870443]
[1736691877460,1.08031193,693.63,692.75,0.28870443]
[1736691878359,1.08031193,693.67,692.75,0.28870443]
[1736691879361,1.08031193,693.64,692.75,0.28870443]
[1736691880454,1.50650981,693.81,692.75,0.28870443]
[1736691880455,1.08031193,693.67,692.75,0.28870443]
[1736691881760,1.08031193,693.69,692.75,0.28870443]
[1736691883263,1.08031193,693.71,692.75,0.28870443]
[1736691883963,1.08031193,693.73,692.75,0.28870443]
[1736691884761,1.08031193,693.64,692.05,1.29436799]
[1736691884963,1.08031193,693.64,692.07,0.2889881]
[1736691885462,1.08031193,693.57,692.07,0.2889881]
[1736691887662,1.08031193,693.62,692.07,0.2889881]
[1736691888465,1.08031193,693.63,692.07,0.2889881]
[1736691888762,2.58725665,693.63,692.07,0.2889881]
[1736691889159,0.26521174,693.62,692.07,0.2889881]
[1736691890566,0.26523247,693.61,692.07,0.2889881]
[1736691890767,0.26523247,693.6,692.07,0.2889881]
[1736691890962,1.08031193,693.55,692.07,0.2889881]
[1736691891163,0.26523247,693.54,692.07,0.2889881]
[1736691892165,0.26523247,693.53,692.07,0.2889881]
[1736691892368,0.26523247,693.52,692.07,0.2889881]
[1736691892568,0.26523247,693.51,692.07,0.2889881]
[1736691892765,2.58725665,693.63,692.07,0.2889881]
[1736691892961,0.26522278,693.62,692.07,0.2889881]
[1736691893368,0.26522714,693.61,692.07,0.2889881]
[1736691893570,0.26522714,693.6,692.07,0.2889881]
[1736691893766,0.26522714,693.59,692.07,0.2889881]
[1736691893970,0.26522714,693.58,692.07,0.2889881]
[1736691894171,0.26522714,693.57,692.07,0.2889881]
[1736691894371,0.26522714,693.56,692.07,0.2889881]
[1736691894672,0.26522714,693.55,692.07,0.2889881]
[1736691894873,0.26522714,693.54,692.07,0.2889881]
[1736691895072,0.26522714,693.53,692.07,0.2889881]
[1736691895265,0.26522714,693.52,692.07,0.2889881]
[1736691895469,1.50694472,693.63,692.07,0.2889881]
[1736691895666,0.26522049,693.62,692.07,0.2889881]
[1736691895875,1.50694472,693.63,692.07,0.2889881]
[1736691896173,0.26522445,693.62,692.07,0.2889881]
[1736691898674,0.26521731,693.61,692.07,0.2889881]
[1736691898973,0.26521731,693.6,692.07,0.2889881]
[1736691899176,0.26521731,693.59,692.07,0.2889881]
[1736691899371,0.26521779,693.58,692.07,0.2889881]
[1736691899672,0.26521779,693.57,692.07,0.2889881]
[1736691899972,0.26521779,693.56,692.07,0.2889881]
[1736691900173,0.26521779,693.55,692.07,0.2889881]
[1736691900473,0.26521779,693.54,692.07,0.2889881]
[1736691900673,0.26521779,693.53,692.07,0.2889881]
[1736691900970,0.26521779,693.52,692.07,0.2889881]
[1736691901170,0.26521779,693.51,692.07,0.2889881]
[1736691901370,0.26521779,693.5,692.07,0.2889881]
[1736691901567,0.26521779,693.49,692.07,0.2889881]
[1736691901770,0.26521779,693.48,692.07,0.2889881]
[1736691901970,0.26521779,693.47,692.07,0.2889881]
[1736691902173,0.26521779,693.46,692.07,0.2889881]
[1736691902373,0.26521779,693.45,692.07,0.2889881]
[1736691902575,0.26521779,693.44,692.07,0.2889881]
[1736691902774,0.26521779,693.43,692.07,0.2889881]
[1736691903073,1.5070698,693.56,692.07,0.2889881]
[1736691903273,0.26521688,693.55,692.07,0.2889881]
[1736691905978,0.26523568,693.54,692.07,0.2889881]
[1736691906278,0.26523568,693.53,692.07,0.2889881]
[1736691906477,0.26523568,693.52,692.07,0.2889881]
[1736691906675,1.5070698,693.56,692.07,0.2889881]
[1736691906873,0.26526784,693.55,692.07,0.2889881]
[1736691907479,0.28837558,693.54,692.07,0.2889881]
[1736691907673,0.26526784,693.53,692.07,0.2889881]
[1736691907873,1.08031193,693.5,692.07,0.2889881]
[1736691908077,0.26526784,693.49,692.07,0.2889881]
[1736691908778,1.08031193,693.5,692.07,0.2889881]
[1736691908979,0.28838389,693.52,692.07,0.2889881]
[1736691908980,1.08031193,693.45,692.07,0.2889881]
[1736691909177,0.26528784,693.44,692.07,0.2889881]
[1736691910178,1.08031193,693.43,692.07,0.2889881]
[1736691910378,0.26528784,693.42,692.07,0.2889881]
[1736691910973,1.5073962,693.41,692.07,0.2889881]
[1736691911181,1.34559977,693.4,692.07,0.2889881]
[1736691911372,0.26529122,693.39,692.07,0.2889881]
[1736691913076,1.08031193,693.38,692.07,0.2889881]
[1736691913274,0.26529811,693.37,692.07,0.2889881]
[1736691913473,0.55374439,693.37,692.07,0.2889881]
[1736691913674,0.26529811,693.36,692.07,0.2889881]
[1736691913980,0.28844628,693.37,692.07,0.2889881]
[1736691914176,1.08031193,693.33,692.07,0.2889881]
[1736691914479,0.26531365,693.32,692.07,0.2889881]
[1736691914879,0.26531645,693.31,692.07,0.2889881]
[1736691915081,1.08031193,693.29,692.07,0.2889881]
[1736691915373,0.26531645,693.28,692.07,0.2889881]
[1736691916777,1.08031193,693.29,692.07,0.2889881]
[1736691916982,1.08031193,693.27,692.07,0.2889881]
[1736691917179,0.26532089,693.26,692.07,0.2889881]
[1736691918181,0.26532089,693.25,692.07,0.2889881]
[1736691918481,0.26532089,693.24,692.07,0.2889881]
[1736691918682,0.26532089,693.23,692.07,0.2889881]
[1736691918981,0.26532089,693.22,692.07,0.2889881]
[1736691919177,0.26532089,693.21,692.07,0.2889881]
[1736691919382,0.26532089,693.2,692.07,0.2889881]
[1736691919680,0.26533825,693.25,692.07,0.2889881]
[1736691919877,0.26533825,693.24,692.07,0.2889881]
[1736691920083,0.26533825,693.23,692.07,0.2889881]
[1736691920380,1.08031193,693.25,692.07,0.2889881]
[1736691920381,0.26533825,693.22,692.07,0.2889881]
[1736691920573,0.26533825,693.21,692.07,0.2889881]
[1736691920778,0.26533825,693.2,692.07,0.2889881]
[1736691920975,1.08031193,693.25,692.07,0.2889881]
[1736691921280,0.26533696,693.24,692.07,0.2889881]
[1736691922084,1.50783163,693.25,692.07,0.2889881]
[1736691922287,0.26534539,693.24,692.07,0.2889881]
[1736691922984,0.26534342,693.23,692.07,0.2889881]
[1736691923182,0.26534342,693.22,692.07,0.2889881]
[1736691923384,0.26534342,693.21,692.07,0.2889881]
[1736691923583,0.26534342,693.2,692.07,0.2889881]
[1736691923781,0.26534342,693.19,692.07,0.2889881]
[1736691923985,0.26534342,693.18,692.07,0.2889881]
[1736691924185,0.26534342,693.17,692.07,0.2889881]
[1736691924387,0.26534342,693.16,692.07,0.2889881]
[1736691924685,0.26534342,693.15,692.07,0.2889881]
[1736691924888,1.08031193,693.2,692.07,0.2889881]
[1736691925090,1.34565467,693.19,692.07,0.2889881]
[1736691925386,0.26534274,693.18,692.07,0.2889881]
[1736691927185,0.26534274,693.17,692.07,0.2889881]
[1736691927491,1.08031193,693.2,692.07,0.2889881]
[1736691927687,0.26534864,693.19,692.07,0.2889881]
[1736691927888,1.34566057,693.19,692.07,0.2889881]
[1736691928088,0.26534864,693.18,692.07,0.2889881]
[1736691929888,0.26534864,693.17,692.07,0.2889881]
[1736691930089,0.26534864,693.16,692.07,0.2889881]
[1736691930287,0.26535056,693.15,692.07,0.2889881]
[1736691930488,0.26535056,693.14,692.07,0.2889881]
[1736691930693,0.26535056,693.13,692.07,0.2889881]
[1736691930889,0.26535056,693.12,692.07,0.2889881]
[1736691931191,1.08031193,693.2,692.07,0.2889881]
[1736691931384,1.08031193,693.21,692.07,0.2889881]
[1736691931586,1.50786974,693.18,692.07,0.2889881]
[1736691933587,0.26538724,693.17,692.07,0.2889881]
[1736691933785,1.50786974,693.18,692.07,0.2889881]
[1736691933985,0.2653894,693.17,692.07,0.2889881]
[1736691934683,1.50786974,693.18,692.07,0.2889881]
[1736691934888,0.2653916,693.17,692.07,0.2889881]
[1736691935588,1.50786974,693.18,692.07,0.2889881]
[1736691935793,0.26539156,693.17,692.07,0.2889881]
[1736691937890,1.50786974,693.18,692.07,0.2889881]
[1736691941093,0.26536589,693.17,692.07,0.2889881]
[1736691941995,1.08031193,693.13,692.07,0.2889881]
[1736691942487,0.26536791,693.12,692.07,0.2889881]
[1736691943094,1.08031193,693.08,692.07,0.2889881]
[1736691943294,0.26536791,693.07,692.07,0.2889881]
[1736691943794,1.08031193,693.08,692.07,0.2889881]
[1736691943994,0.26537256,693.07,692.07,0.2889881]
[1736691944190,1.08031193,693.08,692.07,0.2889881]
[1736691944589,0.26537007,693.07,692.07,0.2889881]
[1736691944991,1.345682,693.07,692.07,0.2889881]
[1736691945195,0.26536793,693.06,692.07,0.2889881]
[1736691945698,1.34567986,693.06,692.07,0.2889881]
[1736691945996,1.08031193,693.06,692.07,0.2889881]
[1736691946192,0.26537166,693.05,692.07,0.2889881]
[1736691946395,0.26537511,693.04,692.07,0.2889881]
[1736691946594,1.08031193,693.05,692.07,0.2889881]
[1736691947193,0.2653764,693.04,692.07,0.2889881]
[1736691947400,1.08031193,693.05,692.07,0.2889881]
[1736691947599,0.26537848,693.04,692.07,0.2889881]
[1736691947895,1.34569041,693.04,692.07,0.2889881]
[1736691948095,1.08031193,693.04,692.07,0.2889881]
[1736691948895,1.08031193,692.98,692.07,0.2889881]
[1736691949801,1.08031193,692.99,692.07,0.2889881]
[1736691951203,1.08031193,692.98,692.07,0.2889881]
[1736691952300,1.08031193,692.99,692.07,0.2889881]
[1736691953102,1.08031193,692.98,692.07,0.2889881]
[1736691956006,1.08031193,692.99,692.07,0.2889881]
[1736691956807,1.08031193,692.97,692.07,0.2889881]
[1736691957413,1.08031193,692.98,692.07,0.2889881]
[1736691958211,1.08031193,692.99,692.07,0.2889881]
[1736691959212,1.50786974,693.18,692.07,0.2889881]
[1736691959213,1.08031193,692.95,692.07,0.2889881]
[1736691960210,1.08031193,692.97,692.07,0.2889881]
[1736691961216,1.08031193,693.0,692.07,0.2889881]
[1736691964321,1.08031193,692.97,692.07,0.2889881]
[1736691965221,1.08031193,693.01,692.07,0.2889881]
[1736691966918,1.08031193,693.25,692.07,0.2889881]
[1736691967923,1.08031193,693.3,692.07,0.2889881]
[1736691968723,1.50755946,693.38,692.07,0.2889881]
[1736691970219,1.08031193,693.41,692.07,0.2889881]
[1736691970621,2.58772446,693.47,692.07,0.2889881]
[1736691972823,1.50741253,693.47,692.07,0.2889881]
[1736691973520,0.26526932,693.36,692.07,0.2889881]
[1736691973727,1.50741253,693.47,692.07,0.2889881]
[1736691984437,1.08031193,693.52,692.07,0.2889881]
[1736691984632,0.26529696,693.36,692.07,0.2889881]